bitfinex-derivatives/quotes_SOLF0:USTF0_20250207
["timestamp","ask_amount","ask_price","bid_price","bid_amount"]
[1738888611448,14.82089858,191.6,191.45,1.6231]
[1738888611449,14.82089858,191.6,191.45,16.40482995]
[1738888611644,14.78172995,191.6,191.45,16.40482995]
[1738888612145,14.78172995,191.57,191.45,16.40482995]
[1738888612445,14.78172995,191.57,191.45,1.6231]
[1738888612646,0.03461086,191.53,191.49,0.03947142]
[1738888612845,0.03461086,191.53,191.5,5.2214]
[1738888613839,0.03461086,191.53,191.49,0.03947142]
[1738888614248,0.03461086,191.53,191.52,5.2211]
[1738888615045,0.03461086,191.53,191.5,5.2214]
[1738888615243,0.03461086,191.53,191.49,0.03947142]
[1738888615751,5.2214,191.51,191.49,0.03947142]
[1738888615944,14.78172995,191.51,191.4,1.6611]
[1738888616145,5.2225,191.47,191.39,5.2245]
[1738888616346,5.2225,191.47,191.36,14.78172995]
[1738888616647,14.78172995,191.48,191.36,14.78172995]
[1738888617346,0.03816872,191.44,191.4,0.03306966]
[1738888618747,0.03816872,191.44,191.4,5.25726966]
[1738888620255,0.03816872,191.44,191.42,5.2238]
[1738888620553,0.03816872,191.44,191.4,0.03306966]
[1738888620753,0.03816872,191.44,191.42,5.2237]
[1738888621749,0.03816872,191.44,191.4,6.966e-05]
[1738888621951,5.2241,191.41,191.4,6.966e-05]
[1738888622152,0.03816872,191.44,191.4,6.966e-05]
[1738888623450,0.03816872,191.44,191.43,5.2235]
[1738888626956,6.872e-05,191.44,191.43,5.2235]
[1738888633170,14.78172995,191.63,191.42,14.78172995]
[1738888633457,14.78172995,191.63,191.5,14.78172995]
[1738888634163,0.03722433,191.58,191.55,0.03431478]
[1738888634863,0.03722433,191.58,191.55,5.25451478]
[1738888636166,0.03722433,191.58,191.55,0.03431478]
[1738888636464,14.78172995,191.57,191.43,3.1636]
[1738888636659,14.78172995,191.54,191.43,3.1636]
[1738888637467,0.03888131,191.5,191.47,0.03442346]
[1738888637664,0.03888131,191.5,191.49,5.2219]
[1738888639560,21.61625537,191.61,191.56,5.2199]
[1738888640762,0.03444586,191.6,191.57,0.03447667]
[1738888640963,5.25334586,191.6,191.57,0.03447667]
[1738888641164,0.03444586,191.6,191.57,0.03447667]
[1738888642870,0.03444586,191.6,191.58,5.2194]
[1738888643165,0.03444586,191.6,191.57,0.03447667]
[1738888643669,0.03444586,191.6,191.45,23.55799566]
[1738888643870,23.55799566,191.61,191.43,3.1636]
[1738888644070,5.2206,191.54,191.43,3.1636]
[1738888644671,0.03669837,191.5,191.47,0.03468638]
[1738888644969,27.59799566,191.58,191.47,0.03468638]
[1738888645267,0.03944761,191.5,191.36,23.55799566]
[1738888645471,23.55799566,191.5,191.35,4.7274]
[1738888645668,5.223,191.45,191.4,5.2242]
[1738888645969,23.55799566,191.5,191.35,3.2029]
[1738888645970,23.55799566,191.5,191.35,1.5474]
[1738888646373,5.2229,191.46,191.38,5.2249]
[1738888646667,0.03982715,191.44,191.41,0.03606649]
[1738888647773,5.26322715,191.44,191.41,0.03606649]
[1738888648167,0.03982715,191.44,191.41,0.03606649]
[1738888649771,0.03982715,191.44,191.41,5.26016649]
[1738888651374,0.03982715,191.44,191.29,23.55799566]
[1738888651570,1.6387,191.49,191.29,23.55799566]
[1738888651773,5.7187,191.49,191.29,23.55799566]
[1738888652072,5.7187,191.49,191.33,23.55799566]
[1738888652073,5.2228,191.46,191.33,23.55799566]
[1738888652374,0.03688542,191.4,191.34,3.2411]
[1738888652569,0.03688542,191.4,191.39,5.2244]
[1738888653373,1.6387,191.49,191.44,5.2232]
[1738888653576,3.0845,191.53,191.37,23.55799566]
[1738888653771,24.70075537,191.53,191.41,23.55799566]
[1738888653970,24.70075537,191.53,191.44,5.2231]
[1738888654270,24.70075537,191.53,191.41,23.55799566]
[1738888654468,0.03390971,191.49,191.41,23.55799566]
[1738888654671,0.03390971,191.49,191.45,0.03717679]
[1738888654877,0.03390971,191.49,191.46,5.2226]
[1738888655978,0.03390971,191.49,191.45,0.03717679]
[1738888657176,0.03390971,191.49,191.45,1.70647679]
[1738888657876,0.03390971,191.49,191.48,5.2222]
[1738888659271,0.03390971,191.49,191.45,1.70647679]
[1738888660880,0.03390971,191.49,191.45,0.03717679]
[1738888661982,0.03390971,191.49,191.45,5.26007679]
[1738888664482,0.03390971,191.49,191.45,0.03717679]
[1738888664974,5.2223,191.48,191.45,0.03717679]
[1738888665177,0.03390971,191.49,191.45,0.03717679]
[1738888665678,5.2226,191.47,191.45,0.03717679]
[1738888666480,0.03390971,191.49,191.45,0.03717679]
[1738888666679,5.2227,191.46,191.45,0.03717679]
[1738888668286,23.59190537,191.49,191.39,5.2244]
[1738888669592,23.59190537,191.49,191.4,5.2242]
[1738888669888,23.55799566,191.49,191.35,3.2888]
[1738888670087,0.0330449,191.46,191.41,5.224]
[1738888671789,5.2558449,191.46,191.41,5.224]
[1738888671986,0.0330449,191.46,191.42,5.2237]
[1738888672289,0.0330449,191.46,191.36,23.55799566]
[1738888672484,0.0330449,191.46,191.39,23.55799566]
[1738888673590,0.0330449,191.46,191.36,23.55799566]
[1738888675086,5.2558449,191.46,191.39,5.2244]
[1738888675396,5.2558449,191.46,191.36,23.55799566]
[1738888676293,5.2558449,191.46,191.39,5.2244]
[1738888676490,5.2231,191.45,191.39,5.2244]
[1738888677193,0.0330449,191.46,191.36,14.73662157]
[1738888678097,0.0330449,191.46,191.43,5.2235]
[1738888678395,0.0330449,191.46,191.39,14.73662157]
[1738888678793,0.0330449,191.46,191.44,5.2232]
[1738888679497,0.0330449,191.46,191.39,14.73662157]
[1738888679697,0.0330449,191.46,191.42,5.2238]
[1738888680493,0.0330449,191.46,191.36,14.73662157]
[1738888681393,5.2558449,191.46,191.4,5.2243]
[1738888682896,0.0330449,191.46,191.43,5.2233]
[1738888683099,0.0330449,191.46,191.39,14.73662157]
[1738888683496,0.0330449,191.46,191.41,5.2241]
[1738888683701,0.0330449,191.46,191.36,14.73662157]
[1738888684099,0.0330449,191.46,191.35,3.2888]
[1738888684306,0.0330449,191.46,191.36,14.73662157]
[1738888684893,0.0330449,191.46,191.43,5.2234]
[1738888687300,0.0330449,191.46,191.45,5.223]
[1738888688400,21.61625537,191.53,191.44,3.145]
[1738888690499,0.03926938,191.5,191.47,0.03724538]
[1738888691307,0.03926938,191.5,191.47,5.25964538]
[1738888691602,0.03926938,191.5,191.47,0.03724538]
[1738888692307,0.03926938,191.5,191.48,5.2222]
[1738888692601,0.03926938,191.5,191.47,0.03724538]
[1738888693607,14.73662157,191.49,191.47,0.03724538]
[1738888694600,5.2222,191.48,191.47,0.03724538]
[1738888694998,14.73662157,191.49,191.36,3.2166]
[1738888695903,5.2231,191.45,191.36,3.2166]
[1738888696102,0.0357934,191.44,191.36,3.2166]
[1738888696501,0.0357934,191.44,191.39,5.2244]
[1738888696702,5.2239,191.42,191.36,3.2166]
[1738888697005,0.0357934,191.44,191.36,3.2166]
[1738888697606,0.0357934,191.44,191.37,5.2249]
[1738888697798,0.0357934,191.44,191.36,3.2166]
[1738888699097,0.0357934,191.44,191.37,14.73662157]
[1738888700107,0.0357934,191.44,191.42,5.2238]
[1738888701204,0.0357934,191.44,191.4,5.2243]
[1738888701410,0.0357934,191.44,191.36,3.2166]
[1738888702207,0.0357934,191.44,191.4,5.2241]
[1738888702806,0.0357934,191.44,191.41,5.2239]
[1738888706810,0.0357934,191.44,191.36,3.2166]
[1738888707011,0.0357934,191.44,191.42,5.2238]
[1738888708108,0.0357934,191.44,191.43,5.2235]
[1738888709911,21.61625537,191.52,191.4,14.73662157]
[1738888710114,23.26645537,191.54,191.47,5.2224]
[1738888710415,23.26645537,191.54,191.41,1.5132]
[1738888710616,23.26645537,191.54,191.45,5.2229]
[1738888710817,23.26645537,191.54,191.41,1.5132]
[1738888711209,0.0388786,191.49,191.48,5.2221]
[1738888711409,0.0388786,191.49,191.46,0.03802643]
[1738888711605,5.2211,191.52,191.46,0.03802643]
[1738888711813,0.03379484,191.49,191.46,5.26052643]
[1738888712013,0.03379484,191.49,191.46,0.03802643]
[1738888712219,21.61625537,191.54,191.48,5.2222]
[1738888712420,21.61625537,191.54,191.46,14.774648]
[1738888712824,5.22,191.56,191.49,5.2217]
[1738888713024,5.22,191.56,191.46,14.73662157]
[1738888713424,0.0393449,191.53,191.49,0.0386791]
[1738888713923,0.0393449,191.53,191.5,5.2216]
[1738888714424,0.0393449,191.53,191.49,0.0386791]
[1738888716723,5.2211,191.52,191.49,0.0386791]
[1738888717115,0.0393449,191.53,191.49,0.0386791]
[1738888717318,14.77596647,191.53,191.49,0.0386791]
[1738888717822,5.2211,191.52,191.49,0.0386791]
[1738888718024,14.77596647,191.53,191.49,0.0386791]
[1738888718425,5.2216,191.51,191.49,0.0386791]
[1738888718921,5.2211,191.52,191.49,0.0386791]
[1738888719225,14.77596647,191.53,191.49,0.0386791]
[1738888719522,0.0393449,191.53,191.49,5.2605791]
[1738888720619,0.0393449,191.53,191.49,0.0386791]
[1738888721817,5.2601449,191.53,191.49,0.0386791]
[1738888722125,0.0393449,191.53,191.49,0.0386791]
[1738888723813,0.0393449,191.53,191.51,5.2211]
[1738888725025,0.0393449,191.53,191.5,5.2216]
[1738888727827,0.0393449,191.53,191.49,0.0386791]
[1738888728018,0.0393449,191.53,191.49,5.2605791]
[1738888728419,0.0393449,191.53,191.49,0.0386791]
[1738888729229,5.2216,191.51,191.49,0.0386791]
[1738888732031,5.2216,191.5,191.49,0.0386791]
[1738888732628,5.2211,191.52,191.49,0.0386791]
[1738888735635,0.0393449,191.53,191.49,0.0386791]
[1738888736830,0.0393449,191.53,191.51,5.2211]
[1738888739936,0.0393449,191.53,191.52,5.2211]
[1738888740638,0.0393449,191.53,191.52,14.63972671]
[1738888743535,0.0393449,191.53,191.5,9.41862671]
[1738888743735,0.0393449,191.53,191.51,5.2213]
[1738888744032,9.45797161,191.53,191.49,0.0386791]
[1738888744238,5.2211,191.52,191.49,0.0386791]
[1738888744439,9.45797161,191.53,191.49,0.0386791]
[1738888745435,14.67887161,191.53,191.49,0.0386791]
[1738888746752,5.2602449,191.53,191.49,0.0386791]
[1738888748453,5.2212,191.52,191.49,0.0386791]
[1738888750647,0.0393449,191.53,191.49,0.0386791]
[1738888751852,0.0393449,191.53,191.49,5.2604791]
[1738888754250,0.0393449,191.53,191.49,0.0386791]
[1738888754451,5.2604449,191.53,191.49,0.0386791]
[1738888755754,0.0393449,191.53,191.51,5.2212]
[1738888755951,0.0393449,191.53,191.49,0.0386791]
[1738888756347,0.0393449,191.53,191.52,5.2211]
[1738888756559,0.0393449,191.53,191.49,0.0386791]
[1738888757449,0.0393449,191.53,191.5,5.2216]
[1738888758261,0.0393449,191.53,191.52,5.2211]
[1738888760158,0.0393449,191.53,191.5,5.2214]
[1738888760765,0.0393449,191.53,191.49,0.0386791]
[1738888762750,0.0393449,191.53,191.49,5.2604791]
[1738888763554,0.0393449,191.53,191.49,0.0386791]
[1738888766246,0.0393449,191.53,191.52,5.2211]
[1738888766448,21.61625537,191.61,191.51,14.72667502]
[1738888766648,21.61625537,191.61,191.59,9.41074892]
[1738888767053,21.61625537,191.61,191.57,9.41074892]
[1738888767649,21.6553419,191.61,191.57,9.45044773]
[1738888768247,21.6553419,191.61,191.58,5.2194]
[1738888768754,0.03908653,191.61,191.58,5.2194]
[1738888769450,0.03908653,191.61,191.57,14.67014773]
[1738888771558,0.03908653,191.61,191.58,5.2194]
[1738888772163,0.03908653,191.61,191.59,9.41074892]
[1738888773653,0.03908653,191.61,191.6,5.2189]
[1738888774954,12.54584892,191.72,191.66,5.2171]
[1738888775153,0.95942266,191.71,191.67,9.41074892]
[1738888775352,1.5295,191.72,191.67,9.41074892]
[1738888776158,0.03684243,191.71,191.68,0.03595957]
[1738888776752,0.99616125,191.71,191.68,0.03595957]
[1738888777261,9.41074892,191.7,191.68,0.03595957]
[1738888777463,0.95931882,191.69,191.68,0.03595957]
[1738888778157,6.17571882,191.69,191.68,0.03595957]
[1738888778368,0.95931882,191.69,191.68,0.03595957]
[1738888778658,0.03684243,191.71,191.68,0.03595957]
[1738888778858,0.99616125,191.71,191.68,0.03595957]
[1738888779657,0.03684243,191.71,191.68,0.03595957]
[1738888779863,5.25274243,191.71,191.68,0.03595957]
[1738888781462,0.95932388,191.7,191.68,0.03595957]
[1738888783163,0.03684243,191.71,191.68,0.03595957]
[1738888783363,0.99612482,191.71,191.68,0.03595957]
[1738888784663,5.2162,191.7,191.68,0.03595957]
[1738888784867,9.41074892,191.7,191.68,0.03595957]
[1738888785069,0.95931869,191.69,191.68,0.03595957]
[1738888785770,6.17571869,191.69,191.68,0.03595957]
[1738888786565,0.95931869,191.69,191.59,9.41074892]
[1738888786765,9.41074892,191.65,191.59,9.41074892]
[1738888787470,9.41074892,191.67,191.59,9.41074892]
[1738888787674,0.03961166,191.64,191.6,0.03583137]
[1738888788774,0.03961166,191.64,191.6,5.25473137]
[1738888789969,5.25741166,191.64,191.6,0.03583137]
[1738888791372,0.03961166,191.64,191.6,0.03583137]
[1738888791568,5.2181,191.63,191.6,0.03583137]
[1738888792874,14.62884892,191.63,191.6,0.03583137]
[1738888793075,14.62934892,191.61,191.6,0.03583137]
[1738888793273,9.41074892,191.61,191.6,0.03583137]
[1738888795372,14.62934892,191.61,191.53,9.41074892]
[1738888795573,9.41074892,191.59,191.53,9.41074892]
[1738888795873,9.41074892,191.59,191.51,16.22834892]
[1738888796073,5.2197,191.58,191.51,16.22834892]
[1738888796472,5.2197,191.58,191.51,11.00724892]
[1738888796679,0.03878075,191.56,191.53,0.03904796]
[1738888797372,9.41074892,191.55,191.53,0.03904796]
[1738888797878,5.2205,191.54,191.53,0.03904796]
[1738888804478,10.92454892,191.55,191.43,9.41074892]
[1738888804676,9.41074892,191.46,191.39,9.41074892]
[1738888804869,9.41074892,191.44,191.37,9.41074892]
[1738888805075,9.41074892,191.42,191.35,9.41074892]
[1738888805784,0.0386606,191.4,191.37,0.03395842]
[1738888806170,5.2630606,191.4,191.37,0.03395842]
[1738888806479,9.44940952,191.4,191.37,0.03395842]
[1738888806680,0.0386606,191.4,191.37,0.03395842]
[1738888806875,0.0386606,191.4,191.31,5.2266]
[1738888807079,14.74962569,191.38,191.28,3.2433]
[1738888807277,5.2265,191.32,191.24,14.74962569]
[1738888807481,14.74962569,191.35,191.25,0.93919657]
[1738888807870,14.74962569,191.32,191.22,24.30493807]
[1738888808183,14.74962569,191.29,191.23,0.93971585]
[1738888808681,0.03646603,191.28,191.23,0.93971585]
[1738888810178,0.03646603,191.28,191.17,1.6024]
[1738888810378,5.2281,191.27,191.2,5.2297]
[1738888810580,0.03646603,191.28,191.21,0.93974358]
[1738888810783,0.03646603,191.28,191.22,0.93974358]
[1738888811081,0.03410375,191.24,191.17,1.6024]
[1738888811283,5.26290375,191.24,191.18,0.93993521]
[1738888811680,5.2299,191.2,191.18,0.93993521]
[1738888811875,14.74962569,191.23,191.19,0.94019037]
[1738888812081,14.74962569,191.23,191.12,14.74962569]
[1738888812279,3.2166,191.25,191.14,5.2312]
[1738888812483,0.03480233,191.19,191.15,0.94013963]
[1738888812884,0.03480233,191.19,191.15,5.2311]
[1738888813083,0.03480233,191.19,191.16,0.94013963]
[1738888813780,0.03480233,191.19,191.13,5.2316]
[1738888814383,5.26490233,191.19,191.13,5.2316]
[1738888815284,0.03480233,191.19,191.09,17.96612569]
[1738888815585,0.03480233,191.19,191.12,14.74962569]
[1738888815786,0.03480233,191.19,191.15,5.2311]
[1738888816486,0.03480233,191.19,191.13,5.2316]
[1738888816683,0.03480233,191.19,191.12,14.74962569]
[1738888817190,0.03480233,191.19,191.13,0.94085637]
[1738888817688,0.03480233,191.19,191.14,0.94085637]
[1738888817890,0.03480233,191.19,191.15,0.94085637]
[1738888818078,0.03480233,191.19,191.16,0.94085637]
[1738888818280,0.03480233,191.19,191.12,14.74962569]
[1738888818586,0.03480233,191.19,191.15,14.74962569]
[1738888818989,0.03480233,191.19,191.16,0.94035433]
[1738888819591,0.03480233,191.19,191.17,0.94035433]
[1738888819791,0.03480233,191.19,191.18,0.94035433]
[1738888820282,5.26520233,191.19,191.18,0.94035433]
[1738888820883,0.03480233,191.19,191.1,0.94035433]
[1738888821087,0.03480233,191.19,191.18,0.94035433]
[1738888821290,0.03480233,191.19,191.13,0.94035433]
[1738888821484,0.03480233,191.19,191.14,0.94035433]
[1738888821684,0.03480233,191.19,191.15,0.94035433]
[1738888821989,0.03480233,191.19,191.16,0.94035433]
[1738888822187,0.03480233,191.19,191.17,0.93983579]
[1738888822387,0.03480233,191.19,191.18,0.93983579]
[1738888822791,0.03480233,191.19,191.1,0.93983579]
[1738888822991,0.03480233,191.19,191.11,0.93983579]
[1738888823285,1.69460233,191.19,191.12,0.93983579]
[1738888823485,14.74962569,191.17,191.13,0.93983579]
[1738888823785,14.74962569,191.17,191.06,0.93983579]
[1738888823786,5.2315,191.14,191.06,0.93983579]
[1738888823988,18.74690809,191.17,191.07,0.93983579]
[1738888824191,18.74690809,191.17,191.05,3.1169]
[1738888824192,18.70962569,191.17,191.08,0.93983579]
[1738888824386,5.2313,191.15,191.09,0.93983579]
[1738888824586,0.03862106,191.14,191.1,0.93983579]
[1738888824792,0.03862106,191.14,191.11,0.93983579]
[1738888824993,5.232,191.12,191.07,5.2334]
[1738888825287,0.03862106,191.14,191.08,0.94059785]
[1738888825490,14.78824675,191.14,191.06,0.94059785]
[1738888825690,14.78824675,191.14,191.07,0.94059785]
[1738888825891,14.78824675,191.14,191.05,1.5855]
[1738888825892,14.78824675,191.14,191.08,0.94059785]
[1738888826090,14.78824675,191.14,191.05,1.5855]
[1738888826287,5.2322,191.12,191.05,6.8194]
[1738888826487,14.78824675,191.14,191.05,6.8194]
[1738888826686,14.78824675,191.14,191.05,5.2339]
[1738888826893,14.78824675,191.14,191.0,14.74962569]
[1738888827098,3.96,191.17,190.99,1.6342]
[1738888827099,5.2334,191.07,191.06,0.94079026]
[1738888827389,14.74962569,191.08,191.0,0.94093247]
[1738888827692,14.74962569,191.08,190.99,5.2353]
[1738888827881,0.03363207,191.06,190.98,1.5314]
[1738888828082,0.31761524,191.03,190.98,1.5314]
[1738888828287,6.01984079,191.02,190.98,1.5314]
[1738888828492,6.01984079,191.01,190.99,0.93323914]
[1738888828686,3.40251871,191.0,190.94,14.74962569]
[1738888828887,1.30866104,190.99,190.95,0.9331668]
[1738888829092,1.30866104,190.98,190.97,5.236]
[1738888829291,0.34856478,190.98,190.97,20.91878868]
[1738888829689,0.03365075,191.02,191.0,5.2351]
[1738888829996,0.31761524,191.04,191.01,0.92561361]
[1738888830188,0.31761524,191.08,191.05,5.2337]
[1738888830495,0.31761524,191.09,191.06,0.92561361]
[1738888830696,0.31761524,191.11,191.04,0.92561361]
[1738888830893,0.31761524,191.11,191.05,0.92534333]
[1738888831089,0.03431146,191.09,191.06,5.2336]
[1738888831294,0.03431146,191.09,191.07,0.92534333]
[1738888831495,0.03431146,191.09,191.08,0.92534333]
[1738888831790,0.03431146,191.09,191.05,0.0332372]
[1738888831990,1.6614,191.19,191.06,14.74962569]
[1738888832196,14.74962569,191.2,191.09,14.74962569]
[1738888832395,118.28962569,191.23,191.1,0.92506845]
[1738888832597,123.51892569,191.23,191.15,5.2312]
[1738888832894,11.60752796,191.19,191.15,5.2312]
[1738888833088,11.60752796,191.19,191.16,0.92494506]
[1738888833291,11.64708864,191.19,191.16,0.92494506]
[1738888833688,7.14309413,191.18,191.16,0.92494506]
[1738888833895,11.60752796,191.18,191.15,0.03663895]
[1738888834291,16.73618925,191.17,190.77,451.71438661]
[1738888834494,16.73618925,191.17,190.87,5.2387]
[1738888834495,14.74962569,190.99,190.87,5.2387]
[1738888834691,23.71024691,190.94,190.8,23.71024691]
[1738888834890,4.08,190.93,190.77,267.48428718]
[1738888835096,5.2384,190.89,190.79,5.2409]
[1738888835292,4.08,190.93,190.8,0.9194969]
[1738888835498,0.03330082,190.86,190.82,0.03675127]
[1738888835692,0.03330082,190.86,190.83,5.2399]
[1738888835990,0.03330082,190.86,190.82,0.03675127]
[1738888836195,23.74354773,190.86,190.82,0.03675127]
[1738888836601,23.74354773,190.86,190.78,0.91950941]
[1738888836792,23.74354773,190.86,190.79,0.91950941]
[1738888836994,28.94954691,190.86,190.67,0.91950941]
[1738888837302,0.19959408,190.82,190.7,23.71024691]
[1738888837491,0.19959408,190.82,190.71,0.91950941]
[1738888837691,0.03933727,190.78,190.75,5.242]
[1738888837896,0.03933727,190.78,190.76,0.91950941]
[1738888838096,0.03933727,190.78,190.77,0.91950941]
[1738888838293,0.03933727,190.78,190.7,23.71024691]
[1738888838697,15.29866069,190.78,190.7,23.71024691]
[1738888838911,15.29866069,190.78,190.73,5.2427]
[1738888839197,15.29866069,190.78,190.71,0.91901147]
[1738888839402,6.33702174,190.75,190.74,0.91901147]
[1738888839596,6.33702174,190.75,190.72,0.91901147]
[1738888839797,6.33702174,190.75,190.73,0.91901147]
[1738888839994,7.48143589,190.74,190.73,5.2427]
[1738888840202,4.516e-05,190.74,190.73,6.16148921]
[1738888840403,4.516e-05,190.74,190.73,0.91878921]
[1738888840602,2.09637593,190.74,190.73,0.91878921]
[1738888840799,2.09633077,190.74,190.73,0.91878921]
[1738888841004,0.03933727,190.78,190.73,0.91878921]
[1738888841200,0.03933727,190.78,190.71,1.6256]
[1738888841201,2.09626942,190.77,190.75,5.242]
[1738888841402,0.03933727,190.78,190.73,23.71024691]
[1738888841804,1.30999091,190.77,190.74,0.91981714]
[1738888842006,1.30999091,190.76,190.74,0.91981714]
[1738888842306,0.03933727,190.78,190.74,0.91981714]
[1738888842497,1.30995271,190.77,190.74,0.91981714]
[1738888842701,1.30995271,190.76,190.74,0.91981714]
[1738888842902,1.30995271,190.75,190.74,6.16221714]
[1738888843106,5.271e-05,190.75,190.74,6.16221714]
[1738888843303,0.03933727,190.78,190.74,0.91981714]
[1738888843503,0.03933727,190.78,190.75,5.2421]
[1738888843708,0.03933727,190.78,190.76,0.91981714]
[1738888844312,4.47909541,190.84,190.77,23.42529763]
[1738888844499,4.47909541,190.84,190.78,8.75485117]
[1738888844805,4.47909541,190.84,190.83,6.25879837]
[1738888845000,23.71024691,190.84,190.71,1.6256]
[1738888845204,23.71024691,190.81,190.72,9.79658484]
[1738888845403,23.71024691,190.81,190.71,1.6256]
[1738888845404,6.33753726,190.73,190.71,1.6256]
[1738888845606,6.33753726,190.73,190.71,5.2432]
[1738888846001,6.33753726,190.73,190.72,0.90599878]
[1738888846509,8.95803902,190.73,190.72,0.90599878]
[1738888847099,2.62050176,190.73,190.72,0.90599878]
[1738888847815,2.62050176,190.73,190.72,6.14899878]
[1738888848312,5.2410382,190.73,190.72,6.14899878]
[1738888849117,19.88798404,190.73,190.72,6.14899878]
[1738888849317,19.88798404,190.73,190.67,18.45474901]
[1738888849519,4.464e-05,190.72,190.67,18.45474901]
[1738888849714,4.464e-05,190.71,190.67,18.45474901]
[1738888849912,17.26748228,190.72,190.71,5.2433]
[1738888850117,0.03528109,190.74,190.67,18.45474901]
[1738888850316,193.0,190.96,190.71,23.71024691]
[1738888850513,3.93051996,190.89,190.82,5.2402]
[1738888850712,4.12,190.96,190.75,23.71024691]
[1738888850713,3.93051996,190.88,190.83,0.89890639]
[1738888850913,3.93051996,190.87,190.76,0.89890639]
[1738888851118,3.93051996,190.86,190.75,23.71024691]
[1738888851319,6.02606049,190.85,190.77,23.71024691]
[1738888851520,8.18e-06,190.82,190.79,0.03932407]
[1738888851818,25.70591273,190.86,190.85,5.2394]
[1738888852014,28.94724691,190.94,190.77,23.71024691]
[1738888852216,28.94724691,190.94,190.78,0.89180039]
[1738888852416,28.94724691,190.94,190.79,0.89180039]
[1738888852617,28.94724691,190.94,190.8,0.89180039]
[1738888852618,11.80960753,190.93,190.8,0.89180039]
[1738888852919,0.03361361,190.88,190.85,0.03596056]
[1738888853419,0.03643923,190.88,190.85,0.03709471]
[1738888853624,11.80960753,190.87,190.81,0.89180039]
[1738888853814,0.03643923,190.88,190.84,23.71024691]
[1738888854016,23.71024691,191.06,190.85,2.53486365]
[1738888854216,23.71024691,191.06,190.9,23.71024691]
[1738888854411,23.71024691,191.06,190.91,0.89166365]
[1738888854715,5.2339,191.05,191.04,6.28535231]
[1738888854917,5.2339,191.05,191.04,16.24546716]
[1738888855118,5.2339,191.05,191.04,17.9269125]
[1738888855420,5.2339,191.05,191.03,6.32272771]
[1738888855623,5.2339,191.05,191.04,0.88451726]
[1738888856118,5.2356,190.99,190.86,23.71024691]
[1738888856422,23.71024691,191.06,190.87,9.4229913]
[1738888856618,23.71024691,191.06,190.86,23.71024691]
[1738888856619,5.2353,191.0,190.93,5.2372]
[1738888856924,23.71024691,191.02,190.86,23.71024691]
[1738888857111,5.2361,190.97,190.89,5.2381]
[1738888857318,23.74772689,190.98,190.9,0.87805518]
[1738888857622,23.74772689,190.98,190.91,3.55204474]
[1738888857623,3.92797901,190.97,190.91,3.55204474]
[1738888857924,3.96125898,190.96,190.92,0.87805518]
[1738888858124,3.92797901,190.95,190.91,0.03473865]
[1738888858416,27.63822592,190.94,190.81,5.04099653]
[1738888858720,5.2379,190.91,190.84,5.2395]
[1738888858915,3.92876241,190.9,190.78,24.59284691]
[1738888859124,3.92876241,190.89,190.79,5.7832376]
[1738888859316,3.92876241,190.88,190.79,2.46527373]
[1738888859513,0.03902632,190.86,190.79,2.46527373]
[1738888859713,6.39596606,190.83,190.79,2.46527373]
[1738888859918,2.96850813,190.82,190.81,5.2405]
[1738888860217,2.96850813,190.82,190.74,0.8751]
[1738888860218,2.96850813,190.82,190.71,23.71024691]
[1738888860416,6.39596606,190.83,190.71,23.71024691]
[1738888860417,0.20103047,190.73,190.72,0.86553055]
[1738888860624,0.20103047,190.79,190.72,0.86553055]
[1738888860926,1.826e-05,190.74,190.73,0.86553055]
[1738888861126,6.39596606,190.76,190.73,0.86553055]
[1738888861322,6.606e-05,190.76,190.74,0.86553055]
[1738888861526,1.6536,190.85,190.79,5.2409]
[1738888861725,1.6536,190.85,190.8,13.31091658]
[1738888862028,0.0377972,190.84,190.81,13.31091658]
[1738888862328,0.0377972,190.84,190.82,18.55111658]
[1738888862526,0.0377972,190.84,190.83,13.31091658]
[1738888863631,0.0377972,190.84,190.83,0.86553055]
[1738888863832,0.0377972,190.84,190.82,5.2402]
[1738888864029,0.0377972,190.84,190.83,0.86553055]
[1738888864528,7.17903342,190.84,190.83,5.7466279]
[1738888864730,7.17903342,190.84,190.83,13.55638366]
[1738888865521,7.17903342,190.84,190.83,0.86553055]
[1738888865722,7.17903342,190.84,190.8,0.03955649]
[1738888866124,11.89611946,190.83,190.8,0.03955649]
[1738888866525,11.89611946,190.82,190.81,4.76002629]
[1738888866724,11.89611946,190.82,190.81,5.61142943]
[1738888867334,11.89611946,190.82,190.81,4.76002629]
[1738888867534,11.89611946,190.82,190.8,0.03955649]
[1738888867535,11.89611946,190.82,190.68,4.14]
[1738888867837,11.89611946,190.82,190.57,187.68]
[1738888867838,17.13631946,190.82,190.76,5.2417]
[1738888868732,0.03595961,190.81,190.77,8.41280787]
[1738888869034,11.93207907,190.81,190.78,6.0860298]
[1738888869235,11.93207907,190.81,190.79,8.41280787]
[1738888869533,11.93207907,190.81,190.8,0.8447298]
[1738888869738,11.93207907,190.81,190.8,8.41280787]
[1738888869939,0.03595961,190.81,190.78,4.22198489]